[Event "FIDE World School-ch O-13 2025"]
[Site "Vrnjacka Banja"]
[Date "2025.03.27"]
[Round "8.1"]
[White "Zharas, Aldiyar"]
[Black "Yurasov, Matfey"]
[Result "1/2-1/2"]
[Annotator "TA"]
[ECO "B51"]
[WhiteElo "1924"]
[BlackElo "2271"]
[PlyCount "77"]
[EventDate "2025.03.19"]
[EventType "swiss"]
[EventCountry "SRB"]
[SourceTitle "playchess.com"]
[Source "ChessBase"]
[SourceQuality "1"]
[TimeControl "5400+30"]

{[%evp 9,77,26,22,26,47,43,55,55,38,10,35,29,47,38,43,43,59,41,67,59,55,42,47,70,75,24,43,16,14,12,15,8,8,10,13,9,8,0,52,-3,-20,-137,-112,-120,-114,-137,148,119,169,117,107,112,133,90,80,77,63,4,99,97,134,135,116,37,45,6,7,9,12,0]} 1. e4 {[%emt 0:00:07]} c5 {[%emt 0:05:56]} 2. Nf3 {[%emt 0:00:09]} d6 {[%emt 0:00:06]} 3. Bb5+ {[%emt 0:00:05]} Nd7 {[%emt 0:00:04]} 4. O-O {[%emt 0:00:15]} a6 {[%emt 0:00:10]} 5. Be2 {[%emt 0:00:08]} Ngf6 {[%emt 0:00:30]} 6. d3 {[%emt 0:00:08] B51: Sicilian: Moscow Variation (3 Bb5+) without 3...Bd7.} g6 {[%emt 0:01:47]} 7. a4 {[%emt 0:01:06][%cal Ba2a4,Ba4a5][%mdl 32]} Bg7 {[%emt 0:00:47]} 8. a5 {[%emt 0:01:25] White is slightly better.} O-O {[%emt 0:01:38]} 9. Kh1 $146 {[%emt 0:05:01]} ({Predecessor:} 9. Bd2 b5 10. axb6 Qxb6 11. b3 Nxe4 12. dxe4 Bxa1 13. c3 Qa5 14. Qc2 Nf6 15. Bh6 {0-1 Motylev,A (2603)-Aizenberg,B (2426) ISR-chT Israel 2025 (11.1)}) 9... b5 {[%emt 0:07:22]} 10. axb6 {[%emt 0:00:08]} Bb7 {[%emt 0:00:16][%cal Od6d5]} 11. Nfd2 {[%emt 0:02:02]} Nxb6 {[%emt 0:00:58]} 12. Nb3 {[%emt 0:02:55]} Rc8 {[%emt 0:00:39]} 13. Bd2 {[%emt 0:04:50]} Nfd7 {[%emt 0:01:12]} 14. Na5 {[%emt 0:01:13]} Ba8 {[%emt 0:00:05]} 15. Bc3 {[%emt 0:00:27]} e6 {[%emt 0:20:06][%cal Be7e6,Be6e5][%mdl 32]} 16. Bxg7 {[%emt 0:07:40]} Kxg7 {[%emt 0:00:05]} 17. Na3 {[%emt 0:07:56]} (17. Nc3 $16) 17... f5 $11 {[%emt 0:00:50]} 18. f3 {[%emt 0:06:10]} (18. Qd2 {with more complications.} Qe7 19. exf5 Rxf5 20. N3c4) 18... d5 {[%emt 0:02:55]} 19. exd5 {[%emt 0:00:31]} Nxd5 {[%emt 0:00:09]} 20. N3c4 {[%emt 0:01:26]} e5 {[%emt 0:02:31]} 21. Nb3 {[%emt 0:02:39]} Qf6 {[%emt 0:02:48]} 22. Qe1 {[%emt 0:02:04]} Nf4 {[%emt 0:00:54]} 23. Qf2 {[%emt 0:06:50]} Rce8 {[%emt 0:09:33]} (23... Bd5 $11) 24. Rae1 {[%emt 0:16:47]} ({White should try} 24. Bd1 $14) 24... e4 {[%emt 0:05:31]} 25. fxe4 {[%emt 0:03:17]} (25. Bd1 $11) 25... fxe4 $17 {[%emt 0:00:11]} 26. dxe4 {[%emt 0:00:20]} Rxe4 {[%emt 0:12:46] ...Nxe2 would now be deadly.} 27. Nbd2 {[%emt 0:00:54][%cal Bb3d2,Bd2e4,Be4g5][%mdl 32] [#]} Rd4 {[%emt 0:08:29][%mdl 8192]} (27... Nxg2 $1 $17 {stays on course.} 28. Qxf6+ (28. Qxg2 $2 Rxe2 $19) 28... Nxf6 (28... Rxf6 $2 29. Nxe4 Nxe1 30. Rxe1 $19) 29. Nxe4 Nxe1 (29... Bxe4 30. Ra1 $15) 30. Rxe1 Nxe4 (30... Bxe4+ 31. Kg1 $17)) 28. Bf3 $16 {[%emt 0:00:58]} Nd5 {[%emt 0:05:50]} (28... Bxf3 $16 29. Qxf3 Qg5) 29. Kg1 {[%emt 0:05:11]} (29. Qe2 $18 {Bxd5 is the strong threat.} Qd8 30. c3) 29... Rf4 {[%emt 0:01:05]} 30. Ne4 {[%emt 0:01:11]} Qd4 {[%emt 0:00:42]} 31. Qxd4+ {[%emt 0:00:14]} cxd4 {[%emt 0:00:01]} 32. Ng5 {[%emt 0:00:25] [#]} Nc5 {[%emt 0:00:00]} 33. Bxd5 {[%emt 0:10:12]} (33. Re5 $14 h6 34. Ne6+ (34. Rxd5 $2 Bxd5 35. Nb6 Bc6 $19) 34... Nxe6 35. Rxe6) 33... Bxd5 {[%emt 0:02:16]} (33... Rxf1+ $11 {remains equal.} 34. Rxf1 Rxf1+ 35. Kxf1 Bxd5) 34. Re7+ {[%emt 0:03:32] White attacks} Kg8 {[%emt 0:01:48]} 35. Rxf4 {[%emt 0:00:12]} Rxf4 {[%emt 0:00:01]} 36. Nb6 {[%emt 0:00:27] White is more active.} (36. Ne5 $16) 36... Bf7 {[%emt 0:02:24]} 37. b4 {[%emt 0:01:23]} d3 $1 {[%emt 0:00:00]} 38. cxd3 {[%emt 0:04:15]} (38. bxc5 $2 {too greedy.} dxc2 39. Re1 Rd4 40. Nxf7 Rd1 41. Nh6+ Kg7 $19) 38... Nxd3 {[%emt 0:00:01]} 39. Nd7 {[%emt 0:02:46] Weighted Error Value: White=0.22 (precise) /Black=0.27 (precise)   Mistake:       	White=6     	Black=4      Inaccurate:     	White=4     	Black=2      OK:         	White=10    	Black=8      Best:        	White=3     	---        Strong:       	---       	Black=1} 1/2-1/2

[Event "FIDE World School-ch O-13 2025"]
[Site "Vrnjacka Banja"]
[Date "2025.03.27"]
[Round "8.2"]
[White "Rusu, Lucas"]
[Black "Obidov, Biloliddin"]
[Result "1/2-1/2"]
[Annotator "NA RC"]
[ECO "B92"]
[WhiteElo "2049"]
[BlackElo "2020"]
[PlyCount "57"]
[EventDate "2025.03.19"]
[EventType "swiss"]
[EventCountry "SRB"]
[SourceTitle "playchess.com"]
[Source "ChessBase"]
[SourceQuality "1"]
[TimeControl "5400+30"]

1. e4 {[%emt 0:00:02]} c5 {[%emt 0:00:03]} 2. Nf3 {[%emt 0:00:06]} d6 {[%emt 0:00:03]} 3. d4 {[%emt 0:00:09]} cxd4 {[%emt 0:00:01]} 4. Nxd4 {[%emt 0:00:02]} Nf6 {[%emt 0:00:01]} 5. Nc3 {[%emt 0:00:46]} a6 {[%emt 0:00:01]} 6. Be2 {[%emt 0:01:00]} e5 {[%emt 0:00:05]} 7. Nb3 {[%emt 0:00:18]} Be7 {[%emt 0:00:25]} 8. O-O {[%emt 0:02:02]} O-O {[%emt 0:00:06]} 9. Kh1 {[%emt 0:04:24]} Nc6 {[%emt 0:01:19]} 10. f3 {[%emt 0:02:28]} Be6 {[%emt 0:07:01]} 11. Be3 {[%emt 0:22:07]} d5 {[%emt 0:13:32]} 12. exd5 {[%emt 0:01:21]} Nxd5 {[%emt 0:00:03]} 13. Nxd5 {[%emt 0:02:09]} Bxd5 {[%emt 0:00:02]} 14. c3 {[%emt 0:07:11]} Be6 {[%emt 0:14:07]} 15. f4 {[%emt 0:10:45]} exf4 {[%emt 0:00:53]} 16. Bxf4 {[%emt 0:06:02]} Qb6 {[%emt 0:02:52]} 17. Bf3 {[%emt 0:03:48]} a5 {[%emt 0:12:13]} 18. Qe2 {[%emt 0:06:41]} Rfe8 {[%emt 0:07:59]} 19. Be3 {[%emt 0:07:39]} Qc7 {[%emt 0:01:36]} 20. Qf2 {[%emt 0:01:25]} Ne5 {[%emt 0:09:50]} 21. Bf4 {[%emt 0:06:47]} Bd6 {[%emt 0:03:17]} 22. Qg3 {[%emt 0:00:42]} Rad8 {[%emt 0:04:41]} 23. Nd4 {[%emt 0:01:31]} Nxf3 {[%emt 0:03:30]} 24. Bxd6 {[%emt 0:01:38]} Qxd6 {[%emt 0:00:06]} 25. Qxd6 {[%emt 0:02:25]} Rxd6 {[%emt 0:00:01]} 26. Rxf3 {[%emt 0:04:39]} Bd5 {[%emt 0:00:18]} 27. Rg3 {[%emt 0:00:51]} Rg6 {[%emt 0:02:03]} 28. Rxg6 {[%emt 0:00:19]} hxg6 {[%emt 0:00:01]} 29. Kg1 {[%emt 0:00:31]} 1/2-1/2

[Event "FIDE World School-ch O-13 2025"]
[Site "Vrnjacka Banja"]
[Date "2025.03.27"]
[Round "8.3"]
[White "Kudrin, Ivan"]
[Black "Ilcic, Aleksa"]
[Result "1/2-1/2"]
[Annotator "NA RC"]
[ECO "E71"]
[WhiteElo "1977"]
[BlackElo "1822"]
[PlyCount "52"]
[EventDate "2025.03.19"]
[EventType "swiss"]
[EventCountry "SRB"]
[SourceTitle "playchess.com"]
[Source "ChessBase"]
[SourceQuality "1"]
[TimeControl "5400+30"]

1. d4 {[%emt 0:00:02]} Nf6 {[%emt 0:00:35]} 2. c4 {[%emt 0:00:07]} g6 {[%emt 0:00:06]} 3. Nc3 {[%emt 0:00:03]} Bg7 {[%emt 0:00:08]} 4. e4 {[%emt 0:00:04]} d6 {[%emt 0:00:07]} 5. h3 {[%emt 0:00:03]} O-O {[%emt 0:00:20]} 6. Be3 {[%emt 0:00:03]} e5 {[%emt 0:00:45]} 7. d5 {[%emt 0:00:07]} Kh8 {[%emt 0:02:37]} 8. g4 {[%emt 0:03:26]} Ng8 {[%emt 0:00:32]} 9. h4 {[%emt 0:12:24]} f5 {[%emt 0:12:22]} 10. h5 {[%emt 0:11:38]} f4 {[%emt 0:09:42]} 11. hxg6 {[%emt 0:00:12]} h6 {[%emt 0:00:10]} 12. Bd2 {[%emt 0:00:04]} Qg5 {[%emt 0:00:36]} 13. Bh3 {[%emt 0:18:58]} Qxg6 {[%emt 0:04:52]} 14. Nf3 {[%emt 0:00:24]} Bf6 {[%emt 0:02:46]} 15. Qe2 {[%emt 0:01:32]} Bg5 {[%emt 0:07:15]} 16. Nxg5 {[%emt 0:00:12]} hxg5 {[%emt 0:02:03]} 17. f3 {[%emt 0:00:10]} Nf6 {[%emt 0:00:47]} 18. O-O-O {[%emt 0:11:36]} Kg7 {[%emt 0:03:25]} 19. Be1 {[%emt 0:00:26]} a5 {[%emt 0:05:17]} 20. Bf2 {[%emt 0:00:31]} b6 {[%emt 0:00:55]} 21. Kb1 {[%emt 0:03:21]} Bd7 {[%emt 0:01:06]} 22. Bg2 {[%emt 0:02:23]} Na6 {[%emt 0:00:38]} 23. Rh2 {[%emt 0:03:56]} Rh8 {[%emt 0:00:51]} 24. Rdh1 {[%emt 0:01:48]} Rxh2 {[%emt 0:00:30]} 25. Rxh2 {[%emt 0:29:30]} Rh8 {[%emt 0:44:35]} 26. Rxh8 {[%emt 0:00:30]} Kxh8 {[%emt 0:00:30]} 1/2-1/2

[Event "FIDE World School-ch O-13 2025"]
[Site "Vrnjacka Banja"]
[Date "2025.03.27"]
[Round "8.4"]
[White "Samarth Sreeni Warrier"]
[Black "Yang, Maxwell"]
[Result "1/2-1/2"]
[Annotator "NA RC"]
[ECO "A31"]
[WhiteElo "1913"]
[BlackElo "1970"]
[PlyCount "160"]
[EventDate "2025.03.19"]
[EventType "swiss"]
[EventCountry "SRB"]
[SourceTitle "playchess.com"]
[Source "ChessBase"]
[SourceQuality "1"]
[TimeControl "5400+30"]

1. Nf3 {[%emt 0:00:05]} c5 {[%emt 0:00:05]} 2. c4 {[%emt 0:00:10]} Nc6 {[%emt 0:00:04]} 3. Nc3 {[%emt 0:00:06]} Nf6 {[%emt 0:00:10]} 4. d4 {[%emt 0:00:34]} cxd4 {[%emt 0:01:14]} 5. Nxd4 {[%emt 0:00:17]} d5 {[%emt 0:02:12]} 6. cxd5 {[%emt 0:12:23]} Nxd5 {[%emt 0:00:37]} 7. g3 {[%emt 0:04:59]} Nxc3 {[%emt 0:04:15]} 8. bxc3 {[%emt 0:00:04]} Qd5 {[%emt 0:00:08]} 9. Rg1 {[%emt 0:05:12]} Bd7 {[%emt 0:01:28]} 10. Bg2 {[%emt 0:02:15]} Qa5 {[%emt 0:00:49]} 11. Bd2 {[%emt 0:03:51]} e5 {[%emt 0:06:30]} 12. c4 {[%emt 0:08:47]} Bb4 {[%emt 0:01:24]} 13. Nb3 {[%emt 0:10:59]} Qa4 {[%emt 0:08:44]} 14. Bxb4 {[%emt 0:04:44]} Qxb4+ {[%emt 0:03:05]} 15. Qd2 {[%emt 0:00:08]} O-O {[%emt 0:05:20]} 16. Qxb4 {[%emt 0:02:18]} Nxb4 {[%emt 0:00:07]} 17. Kd2 {[%emt 0:00:06]} Bc6 {[%emt 0:05:44]} 18. a3 {[%emt 0:02:16]} Na6 {[%emt 0:04:38]} 19. Bxc6 {[%emt 0:00:38]} bxc6 {[%emt 0:00:23]} 20. Kc3 {[%emt 0:00:48]} f6 {[%emt 0:02:13]} 21. Rab1 {[%emt 0:05:09]} Rab8 {[%emt 0:02:17]} 22. Rgd1 {[%emt 0:03:25]} Rfc8 {[%emt 0:01:53]} 23. f3 {[%emt 0:05:51]} Rc7 {[%emt 0:01:52]} 24. Na5 {[%emt 0:03:02]} Rb6 {[%emt 0:03:01]} 25. e4 {[%emt 0:03:31]} Kf7 {[%emt 0:00:43]} 26. h4 {[%emt 0:02:41]} Ke7 {[%emt 0:00:26]} 27. g4 {[%emt 0:01:05]} h6 {[%emt 0:00:41]} 28. Kc2 {[%emt 0:03:43]} Nc5 {[%emt 0:00:49]} 29. Nb3 {[%emt 0:01:34]} Ne6 {[%emt 0:00:43]} 30. Kc3 {[%emt 0:01:35]} Rcb7 {[%emt 0:00:48]} 31. Kc2 {[%emt 0:00:32]} g6 {[%emt 0:20:34]} 32. c5 {[%emt 0:03:36]} Rb5 {[%emt 0:00:54]} 33. a4 {[%emt 0:00:47]} Rb4 {[%emt 0:01:17]} 34. Na5 {[%emt 0:00:42]} Rxb1 {[%emt 0:01:01]} 35. Nxc6+ {[%emt 0:00:56]} Kf7 {[%emt 0:02:43]} 36. Rxb1 {[%emt 0:00:37]} Rc7 {[%emt 0:00:28]} 37. Nb4 {[%emt 0:01:15]} Rxc5+ {[%emt 0:05:24]} 38. Kd3 {[%emt 0:00:02]} Ra5 {[%emt 0:00:54]} 39. Nc6 {[%emt 0:01:05]} Nf4+ {[%emt 0:00:52]} 40. Kd2 {[%emt 0:01:20]} Rxa4 {[%emt 0:00:09]} 41. Rb7+ {[%emt 0:00:01]} Kf8 {[%emt 0:00:47]} 42. Rb8+ {[%emt 0:00:13]} Kf7 {[%emt 0:00:14]} 43. Rb7+ {[%emt 0:00:04]} Ke8 {[%emt 0:00:12]} 44. Re7+ {[%emt 0:00:39]} Kf8 {[%emt 0:00:09]} 45. Rxa7 {[%emt 0:00:02]} Rxa7 {[%emt 0:00:36]} 46. Nxa7 {[%emt 0:00:02]} Ng2 {[%emt 0:00:07]} 47. Ke2 {[%emt 0:00:08]} Nxh4 {[%emt 0:00:41]} 48. Kf2 {[%emt 0:00:01]} g5 {[%emt 0:00:34]} 49. Nb5 {[%emt 0:00:31]} Ke7 {[%emt 0:00:37]} 50. Nc3 {[%emt 0:00:14]} Ng6 {[%emt 0:00:08]} 51. Nd5+ {[%emt 0:00:22]} Kf7 {[%emt 0:00:21]} 52. Ne3 {[%emt 0:00:11]} Nf4 {[%emt 0:01:02]} 53. Kg3 {[%emt 0:00:11]} Kg6 {[%emt 0:00:08]} 54. Nf5 {[%emt 0:00:44]} Ne6 {[%emt 0:01:34]} 55. Ne7+ {[%emt 0:00:15]} Kh7 {[%emt 0:00:17]} 56. Nd5 {[%emt 0:00:44]} Kg7 {[%emt 0:00:06]} 57. Ne3 {[%emt 0:00:20]} Kg6 {[%emt 0:00:13]} 58. Nd5 {[%emt 0:00:10]} Ng7 {[%emt 0:00:11]} 59. Ne7+ {[%emt 0:00:33]} Kf7 {[%emt 0:00:12]} 60. Nd5 {[%emt 0:00:10]} Ke6 {[%emt 0:01:22]} 61. Nc7+ {[%emt 0:01:44]} Kd6 {[%emt 0:00:55]} 62. Nd5 {[%emt 0:00:37]} Ke6 {[%emt 0:00:39]} 63. Nc7+ {[%emt 0:00:44]} Kf7 {[%emt 0:00:06]} 64. Nd5 {[%emt 0:00:05]} Ne8 {[%emt 0:00:05]} 65. Ne3 {[%emt 0:00:05]} Nd6 {[%emt 0:00:04]} 66. Nd5 {[%emt 0:00:12]} Nc8 {[%emt 0:00:13]} 67. Ne3 {[%emt 0:00:46]} Ne7 {[%emt 0:00:05]} 68. Nc2 {[%emt 0:11:34]} Ke6 {[%emt 0:00:15]} 69. Ne3 {[%emt 0:00:00]} Kd6 {[%emt 0:00:04]} 70. Kf2 {[%emt 0:00:00]} Kc5 {[%emt 0:00:05]} 71. Nf1 {[%emt 0:00:00]} Ng6 {[%emt 0:00:50]} 72. Ne3 {[%emt 0:00:00]} Nf4 {[%emt 0:00:27]} 73. Kg3 {[%emt 0:00:00]} Kd4 {[%emt 0:01:53]} 74. Nf5+ {[%emt 0:00:00]} Kd3 {[%emt 0:00:32]} 75. Nxh6 {[%emt 0:00:00]} Ke2 {[%emt 0:00:05]} 76. Ng8 {[%emt 0:00:00]} Kf1 {[%emt 0:00:43]} 77. Nxf6 {[%emt 0:00:00]} Ne2+ {[%emt 0:00:08]} 78. Kh2 {[%emt 0:00:00]} Kf2 {[%emt 0:00:29]} 79. Nd7 {[%emt 0:00:00]} Kxf3 {[%emt 0:00:10]} 80. Nxe5+ {[%emt 0:00:00]} Kxe4 {[%emt 0:00:09]} 1/2-1/2

[Event "FIDE World School-ch O-13 2025"]
[Site "Vrnjacka Banja"]
[Date "2025.03.27"]
[Round "8.5"]
[White "Baturin-Vinogradov, Miroslav"]
[Black "You, Eden"]
[Result "1-0"]
[Annotator "TA"]
[ECO "E11"]
[WhiteElo "1912"]
[BlackElo "2083"]
[PlyCount "37"]
[EventDate "2025.03.19"]
[EventType "swiss"]
[EventCountry "SRB"]
[SourceTitle "playchess.com"]
[Source "ChessBase"]
[SourceQuality "1"]
[TimeControl "5400+30"]

{[%evp 10,37,43,43,39,42,39,25,41,31,55,52,92,87,114,100,119,106,108,118,96,58,72,67,67,70,60,55,99,106]} 1. d4 {[%emt 0:00:03]} Nf6 {[%emt 0:00:06]} 2. c4 {[%emt 0:00:12]} e6 {[%emt 0:00:05]} 3. Nf3 {[%emt 0:00:07]} Bb4+ {[%emt 0:00:07]} 4. Bd2 {[%emt 0:00:08]} Qe7 {[%emt 0:00:06]} 5. g3 {[%emt 0:00:06]} Nc6 {[%emt 0:00:55]} 6. Nc3 {[%emt 0:00:06]} b6 {[%emt 0:01:21] E11: Bogo-Indian.} 7. Bg2 {[%emt 0:02:00]} Bb7 {[%emt 0:00:14][%cal Oc6d4] is the legacy move (7...Na5).} 8. O-O {[%emt 0:01:23]} O-O {[%emt 0:00:17] White has an edge.} 9. Rc1 {[%emt 0:02:29]} d6 $146 {[%emt 0:07:58]} (9... Na5 10. Nb1 Bxd2 11. Qxd2 d6 12. b4 Nc6 13. d5 Nb8 14. Nd4 Kh8 15. Nc3 a5 {1-0 Markus,R (2599)-Dizdarevic,E (2499) Olympiad-40 Istanbul 2012 (4.2)}) 10. d5 {[%emt 0:07:04]} Nb8 {[%emt 0:08:11]} 11. Nd4 {[%emt 0:03:45]} e5 {[%emt 0:09:44]} 12. Nf5 {[%emt 0:06:24]} Qd8 {[%emt 0:04:06]} 13. e4 {[%emt 0:04:09] White has more active pieces. The black rooks are passive.} Bc8 {[%emt 0:03:20]} 14. g4 {[%emt 0:03:54]} Bxf5 {[%emt 0:04:03]} 15. gxf5 {[%emt 0:00:17]} Bxc3 {[%emt 0:04:44]} 16. Rxc3 {[%emt 0:00:43]} Nbd7 {[%emt 0:01:38]} 17. Kh1 {[%emt 0:01:39]} Kh8 {[%emt 0:02:17]} 18. Bg5 {[%emt 0:01:40]} g6 {[%emt 0:04:54] White has space advantage and is better} 19. Rh3 {[%emt 0:11:50] Weighted Error Value: White=0.06 (flawless) /Black=0.13 (very precise)   Inaccurate:     	White=1     	Black=3      OK:         	White=7     	Black=3} 1-0

[Event "FIDE World School-ch O-13 2025"]
[Site "Vrnjacka Banja"]
[Date "2025.03.27"]
[Round "8.6"]
[White "Wijerathna, Vinuka Dihain"]
[Black "Kuntelia, Luka"]
[Result "1-0"]
[Annotator "TA"]
[ECO "B22"]
[WhiteElo "2117"]
[BlackElo "1895"]
[PlyCount "99"]
[EventDate "2025.03.19"]
[EventType "swiss"]
[EventCountry "SRB"]
[SourceTitle "playchess.com"]
[Source "ChessBase"]
[SourceQuality "1"]
[TimeControl "5400+30"]

{[%evp 23,98,43,66,66,60,50,62,47,44,55,59,17,0,3,6,-31,-12,-15,5,-27,-20,-24,-17,-20,0,0,67,91,74,76,65,69,115,70,93,46,49,44,58,0,0,0,0,0,0,0,0,0,78,69,70,30,51,37,147,0,60,36,151,90,175,77,82,70,65,65,65,65,323,337,348,339,29988,29989,29990,29991,29993]} 1. e4 {[%emt 0:00:01][%cal Be2e4,Be4e5][%mdl 32]} c5 {[%emt 0:00:04]} 2. Nf3 {[%emt 0:00:05]} e6 {[%emt 0:00:05]} 3. c3 {[%emt 0:00:04]} Nf6 {[%emt 0:08:36]} 4. e5 {[%emt 0:00:29]} Nd5 {[%emt 0:00:24]} 5. d4 {[%emt 0:00:51]} cxd4 {[%emt 0:00:14]} 6. cxd4 {[%emt 0:00:13]} d6 {[%emt 0:01:25]} 7. exd6 {[%emt 0:00:33]} Bxd6 {[%emt 0:00:22]} 8. Nc3 {[%emt 0:00:09]} Nxc3 {[%emt 0:10:55]} 9. bxc3 {[%emt 0:00:06]} Nc6 {[%emt 0:00:05]} 10. Bd3 {[%emt 0:02:31]} h6 {[%emt 0:00:33]} 11. O-O {[%emt 0:01:35]} O-O {[%emt 0:00:16]} 12. Re1 {[%emt 0:03:20]} Bd7 {[%emt 0:10:57]} 13. Bc2 {[%emt 0:06:49] B22: Sicilian: 2 c3.} Ne7 {[%emt 0:19:01]} 14. Qd3 {[%emt 0:01:22]} Ng6 {[%emt 0:01:03] [#]} 15. h4 $1 {[%emt 0:00:35][%cal Bh2h4,Bh4h5][%mdl 32] White is slightly better.} Re8 {[%emt 0:12:05][%cal Od8a5]} (15... Qa5 16. Ne5) 16. h5 {[%emt 0:03:26]} Nf8 {[%emt 0:00:07]} 17. c4 $146 {[%emt 0:00:52]} (17. Ne5 Bxe5 18. Rxe5 Bc6 19. c4 Qh4 20. Bb2 f6 21. Re3 Qxh5 22. Rae1 Rad8 23. Rh3 {1-0 Nevednichy,V (2582)-Bouaziz,S (2338) Olympiad-37 Turin 2006 (8)}) 17... Bc6 {[%emt 0:01:57]} 18. Ne5 {[%emt 0:08:31]} Qh4 {[%emt 0:01:53]} 19. Bd1 {[%emt 0:21:33]} Rad8 {[%emt 0:03:09] and ...Bxe5 would now be decisive} 20. Bb2 {[%emt 0:09:18]} Bc7 {[%emt 0:07:41]} 21. Bf3 {[%emt 0:03:45] The board is on fire.} Bxe5 {[%emt 0:03:46]} 22. Rxe5 {[%emt 0:35:22]} Nd7 {[%emt 0:00:34]} 23. Ree1 {[%emt 0:00:00]} Nf6 {[%emt 0:01:25]} 24. d5 {[%emt 0:00:00]} Bd7 {[%emt 0:05:52]} (24... exd5 $11 25. Bxf6 Qxf6 26. cxd5 Rxe1+ 27. Rxe1 Qg5) 25. g3 $14 {[%emt 0:00:00]} Qh3 {[%emt 0:00:44]} 26. Bxf6 {[%emt 0:00:00]} gxf6 {[%emt 0:00:05]} 27. Rad1 {[%emt 0:00:00]} e5 {[%emt 0:00:43][%csl Od5] White has a strong passed pawn} (27... Kg7 $14) 28. Qe2 {[%emt 0:00:00][%cal Oa2a4]} b6 {[%emt 0:01:49]} 29. Rc1 {[%emt 0:00:00]} (29. Rd3 $16) 29... Qf5 {[%emt 0:01:01]} 30. Qe3 {[%emt 0:00:00][%cal Oa2a4]} Kg7 {[%emt 0:01:20]} 31. c5 {[%emt 0:00:00]} (31. a4 $14) 31... bxc5 $11 {[%emt 0:00:06]} 32. Rxc5 {[%emt 0:00:00]} Rc8 {[%emt 0:01:00]} 33. g4 {[%emt 0:00:00]} (33. Ra5 {looks sharper.} e4 34. Bxe4 Qxh5 35. Rxa7 Bg4 36. d6) 33... Qg5 {[%emt 0:00:58]} 34. Qxg5+ {[%emt 0:00:00]} hxg5 {[%emt 0:00:10]} 35. Rec1 {[%emt 0:00:00]} a6 {[%emt 0:03:04]} (35... Rxc5 $11 {remains equal.} 36. Rxc5 e4) 36. Rxc8 $16 {[%emt 0:02:39]} Bxc8 {[%emt 0:00:15][%mdl 4096] Endgame KRB-KRB} 37. Rc6 {[%emt 0:00:57]} e4 {[%emt 0:00:51]} 38. Be2 {[%emt 0:00:33][%cal Oa2a4]} Bb7 {[%emt 0:00:27] [#]} (38... Rd8 $14) 39. Rd6 {[%emt 0:00:32]} (39. Bxa6 $1 $16 Bxa6 (39... Bxc6 $2 40. dxc6 Re7 41. Bb7 $18) 40. Rxa6) 39... e3 {[%emt 0:00:42]} (39... Re5 $11) 40. fxe3 {[%emt 0:00:15][%cal Og1f2]} (40. Bxa6 $2 Bxa6 (40... e2 $2 41. Bxe2 Rxe2 42. f3 $19) 41. fxe3 Bc8 42. h6+ Kg6 $19 (42... Kxh6 $2 43. Rxf6+ Kg7 44. Rc6 $19)) 40... Rxe3 {[%emt 0:00:06]} (40... Re5 $1 $14) 41. Kf2 {[%emt 0:00:09]} (41. Bxa6 $6 Bxa6 42. Rxa6 Rg3+ 43. Kf2 Rxg4 $11) 41... Re4 {[%emt 0:00:51] [#]} (41... Re5 $16 {was worth a try.}) 42. Rd7 {[%emt 0:03:54]} (42. Bxa6 $6 Bxa6 43. Rxa6 Rxg4 $14) (42. Rd8 $1 $18 {and the rest is easy.}) 42... Bc8 {[%emt 0:02:00] [#]} 43. h6+ $1 {[%emt 0:00:27]} Kxh6 {[%emt 0:00:47]} 44. Rxf7 {[%emt 0:00:05]} Bxg4 {[%emt 0:00:43]} 45. Bd3 {[%emt 0:00:30] White is more active.} (45. Rxf6+ Kg7 46. Bd3 (46. Bf3 Ra4 $15) 46... Kxf6 $17) (45. Bxg4 Rxg4 46. Rxf6+ Kg7 47. Rxa6 Rd4 $11) 45... Rf4+ {[%emt 0:00:17][%mdl 8192] This costs Black the game.} ({Black should try} 45... Bh5 $1 $14 46. Bxe4 (46. Rxf6+ Kg7 $16) 46... Bxf7) 46. Ke3 $18 {[%emt 0:00:04][%csl Gd3][%cal Rf7h7]} f5 {[%emt 0:00:42][%cal Bf6f5,Bf5f4][%mdl 32]} 47. d6 $1 {[%emt 0:00:02][%cal Bd5d6,Bd6d7][%mdl 32] And now d7! would win.} ({Stronger than} 47. Bxa6 Re4+ 48. Kd3 Be2+ 49. Kc3 Kg6 $17 (49... Bxa6 50. Rf6+ Kg7 51. Rxa6 $17)) 47... Ra4 $2 {[%emt 0:00:21]} (47... Rb4 $18 48. d7 (48. Bxa6 f4+ 49. Kd3 Rb6 $15) (48. Bxf5 Bxf5 49. Rxf5 Rb8 $16) 48... Rb8 (48... f4+ 49. Kd2)) 48. d7 {[%emt 0:00:54] White mates.} f4+ {[%emt 0:00:30]} 49. Kd2 {[%emt 0:00:04][%csl Gd3][%cal Rf7h7]} Rxa2+ {[%emt 0:00:11]} 50. Kc1 {[%emt 0:00:57] Weighted Error Value: White=0.17 (very precise) /Black=0.39  Loses game:     	---       	Black=1      Mistake:       	White=4     	Black=8      Inaccurate:     	White=5     	---        OK:         	White=11    	Black=11     Best:        	White=5     	Black=7      Strong:       	White=1     	---        Brilliant:      	White=1     	---} 1-0